fUST/lending_fUST_20250402
["ID","MTS","AMOUNT","RATE_DAILY","PERIOD"]
[357036636,1743606633236,-503.34480688,0.00016438,2]
[357036638,1743606633246,-500.0,0.00016438,2]
[357036640,1743606633255,-500.0,0.00016438,2]
[357036641,1743606633265,-500.0,0.00016438,2]
[357036642,1743606633274,-500.0,0.00016438,2]
[357036643,1743606633284,-500.0,0.00016438,2]
[357036644,1743606633294,-500.0,0.00016438,2]
[357036645,1743606633303,-551.73747459,0.00016438,2]
[357036646,1743606633313,-500.0,0.00016438,2]
[357036647,1743606633322,-500.0,0.00016438,2]
[357036648,1743606633332,-500.0,0.00016438,2]
[357036649,1743606633342,-500.0,0.00016438,2]
[357036650,1743606633354,-500.0,0.00016438,2]
[357036651,1743606633363,-500.0,0.00016438,2]
[357036652,1743606633373,-500.0,0.00016438,2]
[357036653,1743606633383,-383.02084848,0.00016438,2]
[357036654,1743606633392,-493.37030311,0.00016438,2]
[357036655,1743606633402,-500.0,0.00016438,2]
[357036656,1743606633411,-500.0,0.00016438,2]
[357036657,1743606633421,-606.78,0.00016438,2]
[357036658,1743606633430,-500.0,0.00016438,2]
[357036659,1743606633441,-500.0,0.00016438,2]
[357036660,1743606633451,-500.0,0.00016438,2]
[357036661,1743606633461,-500.0,0.00016438,2]
[357036662,1743606633471,-324.28843507,0.00016438,2]
[357036663,1743606633480,-500.0,0.00016438,2]
[357036664,1743606633490,-500.0,0.00016438,2]
[357036665,1743606633501,-500.0,0.00016438,2]
[357036666,1743606633512,-500.0,0.00016438,2]
[357036667,1743606633522,-531.04485022,0.00016438,2]
[357036668,1743606633533,-593.29,0.00016438,2]
[357036669,1743606633544,-613.87,0.00016438,2]
[357036670,1743606633715,-500.0,0.00016438,2]
[357036671,1743606633726,-500.0,0.00016438,2]
[357036672,1743606633737,-500.0,0.00016438,2]
[357036673,1743606633747,-500.0,0.00016438,2]
[357036674,1743606633757,-500.0,0.00016438,2]
[357036675,1743606633767,-500.0,0.00016438,2]
[357036676,1743606633777,-501.45578906,0.00016438,2]
[357036677,1743606633787,-535.62,0.00016438,2]
[357036678,1743606633797,-500.0,0.00016438,2]
[357036679,1743606633807,-631.2,0.00016438,2]
[357036680,1743606633816,-500.0,0.00016438,2]
[357036681,1743606633826,-500.0,0.00016438,2]
[357036682,1743606633836,-500.0,0.00016438,2]
[357036683,1743606633846,-500.0,0.00016438,2]
[357036684,1743606633859,-500.0,0.00016438,2]
[357036685,1743606633869,-637.07,0.00016438,2]
[357036686,1743606633880,-500.0,0.00016438,2]
[357036687,1743606633890,-579.75,0.00016438,2]
[357036688,1743606633900,-553.5,0.00016438,2]
[357036689,1743606633909,-500.0,0.00016438,2]
[357036690,1743606633919,-500.0,0.00016438,2]
[357036691,1743606633930,-500.0,0.00016438,2]
[357036692,1743606633940,-299.76545762,0.00016438,2]
[357036693,1743606633949,-500.0,0.00016438,2]
[357036694,1743606633959,-500.0,0.00016438,2]
[357036695,1743606633968,-500.0,0.00016438,2]
[357036696,1743606633978,-500.0,0.00016438,2]
[357036697,1743606633988,-500.0,0.00016438,2]
[357036698,1743606633998,-500.0,0.00016438,2]
[357036699,1743606634008,-500.0,0.00016438,2]
[357036700,1743606634018,-500.0,0.00016438,2]
[357036701,1743606634027,-1000.0,0.00016438,7]
[357036702,1743606634037,-500.0,0.00016438,2]
[357036703,1743606634046,-500.0,0.00016438,2]
[357036704,1743606634056,-500.0,0.00016438,2]
[357036705,1743606634065,-517.96,0.00016438,2]
[357036706,1743606634075,-500.0,0.00016438,2]
[357036707,1743606634085,-500.0,0.00016438,2]
[357036708,1743606634095,-574.09,0.00016438,2]
[357036709,1743606634110,-500.0,0.00016438,2]
[357036710,1743606634121,-716.3,0.00016438,2]
[357036711,1743606634130,-500.0,0.00016438,2]
[357036712,1743606634140,-500.0,0.00016438,2]
[357036713,1743606634150,-500.0,0.00016438,2]
[357036714,1743606634159,-500.0,0.00016438,2]
[357036715,1743606634168,-500.0,0.00016438,2]
[357036716,1743606634178,-500.0,0.00016438,2]
[357036717,1743606634187,-500.0,0.00016438,2]
[357036718,1743606634197,-575.24,0.00016438,2]
[357036719,1743606634207,-500.0,0.00016438,2]
[357036720,1743606634216,-500.0,0.00016438,2]
[357036721,1743606634225,-500.0,0.00016438,2]
[357036722,1743606634235,-500.0,0.00016438,2]
[357036723,1743606634244,-589.3,0.00016438,2]
[357036724,1743606634254,-209.57095964,0.00016438,2]
[357036725,1743606634264,-500.0,0.00016438,2]
[357036726,1743606634275,-500.0,0.00016438,2]
[357036727,1743606634284,-500.0,0.00016438,2]
[357036728,1743606634294,-500.0,0.00016438,2]
[357036729,1743606634304,-524.7924,0.00016438,2]
[357036730,1743606634313,-500.0,0.00016438,2]
[357036731,1743606634323,-500.0,0.00016438,2]
[357036732,1743606634333,-500.0,0.00016438,2]
[357036733,1743606634342,-500.0,0.00016438,2]
[357036734,1743606634354,-500.0,0.00016438,2]
[357036735,1743606634363,-611.49,0.00016438,2]
[357036736,1743606634374,-500.0,0.00016438,2]
[357036737,1743606634384,-500.0,0.00016438,2]
[357036738,1743606634394,-500.0,0.00016438,2]
[357036739,1743606634403,-500.0,0.00016438,2]
[357036740,1743606634413,-500.0,0.00016438,2]
[357036741,1743606634422,-500.0,0.00016438,2]
[357036742,1743606634431,-500.0,0.00016438,2]
[357036743,1743606634441,-500.0,0.00016438,2]
[357036744,1743606634451,-500.0,0.00016438,2]
[357036745,1743606634460,-24397.05322346,0.00016612,2]
[357036764,1743606638500,-500.0,0.00015436,2]
[357036765,1743606638510,-500.0,0.00015436,2]
[357036766,1743606638521,-500.0,0.00015436,2]
[357036767,1743606638532,-500.0,0.00015436,2]
[357036768,1743606638544,-500.0,0.00015436,2]
[357036769,1743606638554,-487.1865563,0.00015436,2]
[357036770,1743606638563,-433.07032986,0.00015436,2]
[357036771,1743606638573,-500.0,0.00015436,2]
[357036772,1743606638583,-500.0,0.00015436,2]
[357036773,1743606638592,-500.0,0.00015436,2]
[357036774,1743606638602,-500.0,0.00015436,2]
[357036775,1743606638616,-500.0,0.00015436,2]
[357036776,1743606638626,-2723.51610755,0.00016334,2]
[357036777,1743606638636,-500.0,0.00016438,2]
[357036778,1743606638645,-31864.92695212,0.00016612,2]
[357036779,1743606638654,-500.0,0.00016712,2]
[357036780,1743606638664,-500.0,0.00016712,2]
[357036781,1743606638674,-500.0,0.00016712,2]
[357036782,1743606638684,-482.47,0.00016712,2]
[357036783,1743606638693,-500.0,0.00016712,2]
[357036784,1743606638704,-500.0,0.00016712,2]
[357036785,1743606638714,-630.89,0.00016712,2]
[357036786,1743606638723,-283.96,0.00016712,2]
[357036787,1743606638733,-637.07,0.00016712,2]
[357036788,1743606638742,-500.0,0.00016712,2]
[357036789,1743606638753,-475.4,0.00016712,2]
[357036790,1743606638762,-500.0,0.00016712,2]
[357036791,1743606638772,-161.11,0.00016712,2]
[357036792,1743606638781,-500.0,0.00016712,2]
[357036793,1743606638790,-500.0,0.00016712,2]
[357036794,1743606638800,-500.0,0.00016712,2]
[357036795,1743606638809,-500.0,0.00016712,2]
[357036796,1743606638819,-1000.0,0.00016712,7]
[357036797,1743606638828,-500.0,0.00016712,2]
[357036798,1743606638838,-582.99,0.00016712,2]
[357036799,1743606638847,-282.38,0.00016712,2]
[357036800,1743606638858,-716.3,0.00016712,2]
[357036801,1743606638867,-399.08,0.00016712,2]
[357036802,1743606638877,-217.35,0.00016712,2]
[357036803,1743606638886,-200.06,0.00016712,2]
[357036804,1743606638895,-500.0,0.00016712,2]
[357036805,1743606638905,-500.0,0.00016712,2]
[357036806,1743606638914,-226.79,0.00016712,2]
[357036807,1743606638923,-500.0,0.00016712,2]
[357036808,1743606638933,-589.3,0.00016712,2]
[357036809,1743606638942,-321.61,0.00016712,2]
[357036810,1743606638952,-354.81,0.00016712,2]
[357036811,1743606638961,-500.0,0.00016712,2]
[357036812,1743606638971,-323.05,0.00016712,2]
[357036813,1743606638980,-610.42,0.00016712,2]
[357036814,1743606638989,-500.0,0.00016712,2]
[357036815,1743606639000,-512.38,0.00016712,2]
[357036816,1743606639010,-500.0,0.00016712,2]
[357036817,1743606639019,-500.0,0.00016712,2]
[357036818,1743606639029,-500.0,0.00016712,2]
[357036819,1743606639038,-283.29001936,0.00016912,2]
[357036820,1743606639048,-500.0,0.00016986,2]
[357036821,1743606639057,-500.0,0.00016986,2]
[357036822,1743606639067,-207.45,0.00016986,2]
[357036823,1743606639077,-637.07,0.00016986,2]
[357036824,1743606639086,-500.0,0.00016986,2]
[357036825,1743606639095,-500.0,0.00016986,2]
[357036826,1743606639105,-186.66,0.00016986,2]
[357036827,1743606639116,-500.0,0.00016986,2]
[357036828,1743606639125,-500.0,0.00016986,2]
[357036829,1743606639135,-1000.0,0.00016986,7]
[357036830,1743606639144,-402.37046637,0.00016986,2]
[357036831,1743606639156,-313.92953363,0.00016986,2]
[357036832,1743606639166,-216.74046637,0.00016986,2]
[357036833,1743606639177,-283.25953363,0.00016986,2]
[357036834,1743606639187,-500.0,0.00016986,2]
[357036835,1743606639196,-589.3,0.00016986,2]
[357036836,1743606639205,-310.17,0.00016986,2]
[357036837,1743606639214,-529.44,0.00016986,2]
[357036838,1743606639224,-500.0,0.00016986,2]
[357036839,1743606639233,-500.0,0.00016986,2]
[357036840,1743606639243,-500.0,0.00017011,2]
[357036841,1743606639252,-500.0,0.00017011,2]
[357036842,1743606639261,-1040.15482715,0.00017229,2]
[357036843,1743606639271,-500.50547554,0.00017259,2]
[357036844,1743606639281,-500.0,0.0001726,2]
[357036845,1743606639290,-500.0,0.0001726,2]
[357036846,1743606639299,-637.07,0.0001726,2]
[357036847,1743606639312,-500.0,0.0001726,2]
[357036848,1743606639321,-495.99,0.0001726,2]
[357036849,1743606639331,-489.54,0.0001726,2]
[357036850,1743606639340,-555.17,0.0001726,2]
[357036851,1743606639349,-1000.0,0.0001726,7]
[357036852,1743606639361,-716.3,0.0001726,2]
[357036853,1743606639370,-500.0,0.0001726,2]
[357036854,1743606639380,-636.87,0.0001726,2]
[357036855,1743606639389,-589.3,0.0001726,2]
[357036856,1743606639398,-500.0,0.0001726,2]
[357036857,1743606639408,-200.0,0.00017277,2]
[357036858,1743606639417,-155.0,0.00017277,2]
[357036859,1743606639426,-500.0,0.00017339,2]
[357036860,1743606639435,-510.23281177,0.00017341,2]
[357036861,1743606639444,-492.6733736,0.00017343,2]
[357036862,1743606639454,-506.20828233,0.00017366,2]
[357036863,1743606639463,-500.0,0.00017532,2]
[357036864,1743606639473,-500.0,0.00017532,2]
[357036865,1743606639482,-500.0,0.00017532,2]
[357036866,1743606639492,-500.0,0.00017532,2]
[357036867,1743606639501,-500.0,0.00017532,2]
[357036868,1743606639510,-446.93,0.00017534,2]
[357036869,1743606639520,-500.0,0.00017534,2]
[357036870,1743606639533,-637.07,0.00017534,2]
[357036871,1743606639543,-500.0,0.00017534,2]
[357036872,1743606639552,-1000.0,0.00017534,7]
[357036873,1743606639562,-716.3,0.00017534,2]
[357036874,1743606639572,-500.0,0.00017534,2]
[357036875,1743606639582,-589.3,0.00017534,2]
[357036876,1743606639591,-500.0,0.00017534,2]
[357036877,1743606639600,-2806.1166603,0.00017539,2]
[357036878,1743606639615,-465.78788304,0.00017599,2]
[357036879,1743606639625,-500.0,0.00017641,2]
[357036880,1743606639634,-500.0,0.00017641,2]
[357036881,1743606639644,-500.0,0.00017641,2]
[357036882,1743606639653,-500.0,0.00017641,2]
[357036883,1743606639662,-501.97136988,0.00017641,2]
[357036884,1743606639672,-500.0,0.00017641,2]
[357036885,1743606639681,-500.0,0.00017641,2]
[357036886,1743606639692,-500.0,0.00017641,2]
[357036887,1743606639701,-501.74498303,0.00017641,2]
[357036888,1743606639711,-496.24509194,0.00017694,2]
[357036889,1743606639721,-500.0,0.00017713,2]
[357036890,1743606639731,-500.0,0.00017771,2]
[357036891,1743606639740,-500.0,0.00017771,2]
[357036892,1743606639750,-500.0,0.00017771,2]
[357036893,1743606639760,-455.32556439,0.00017771,2]
[357036894,1743606639769,-500.0,0.00017771,2]
[357036895,1743606639780,-465.1514445,0.00017771,2]
[357036896,1743606639789,-419.32412488,0.00017771,2]
[357036897,1743606639799,-500.0,0.00017771,2]
[357036898,1743606639808,-535.44368373,0.00017771,2]
[357036899,1743606639818,-500.98596614,0.00017771,2]
[357036900,1743606639827,-500.0,0.00017771,2]
[357036901,1743606639837,-500.0,0.00017771,2]
[357036902,1743606639847,-504.40497214,0.00017771,2]
[357036903,1743606639860,-500.0,0.00017771,2]
[357036904,1743606639869,-500.0,0.00017771,2]
[357036905,1743606639879,-500.0,0.00017771,2]
[357036906,1743606639888,-500.0,0.00017771,2]
[357036907,1743606639898,-501.69607053,0.00017788,2]
[357036908,1743606639907,-500.0,0.00017788,2]
[357036909,1743606639917,-507.30636795,0.00017795,2]
[357036910,1743606639926,-500.0,0.00017808,2]
[357036911,1743606639936,-637.07,0.00017808,2]
[357036912,1743606639945,-500.0,0.00017808,2]
[357036913,1743606639955,-1000.0,0.00017808,7]
[357036914,1743606639965,-716.3,0.00017808,2]
[357036915,1743606639975,-500.0,0.00017808,2]
[357036916,1743606639985,-589.3,0.00017808,2]
[357036917,1743606639994,-325.46,0.00017808,2]
[357036918,1743606640003,-258.587,0.00017825,2]
[357036919,1743606640013,-500.0,0.00017827,2]
[357036920,1743606640022,-500.0,0.00017827,2]
[357036921,1743606640031,-500.0,0.00017827,2]
[357036922,1743606640041,-621.16894622,0.00017827,2]
[357036923,1743606640050,-272.85096142,0.00018081,2]
[357036924,1743606640059,-500.0,0.00018082,2]
[357036925,1743606640069,-637.07,0.00018082,2]
[357036926,1743606640078,-500.0,0.00018082,2]
[357036927,1743606640087,-1000.0,0.00018082,7]
[357036928,1743606640096,-716.3,0.00018082,2]
[357036929,1743606640107,-500.0,0.00018082,2]
[357036930,1743606640118,-589.3,0.00018082,2]
[357036931,1743606640127,-1040.15482715,0.00018119,2]
[357036933,1743606640137,-151.0,0.000182,2]
[357036936,1743606640147,-151.0,0.000182,2]
[357036939,1743606640156,-2952.1453273,0.000182,2]
[357036942,1743606640165,-2952.14532715,0.000182,2]
[357036944,1743606640175,-2328.4733278,0.0001821,2]
[357036946,1743606640187,-623.67199935,0.0001821,2]
[357036948,1743606640198,-500.0,0.00018356,2]
[357036950,1743606640207,-572.75744,0.00018356,2]
[357036952,1743606640216,-572.75744,0.00018356,2]
[357036954,1743606640226,-637.07,0.00018356,2]
[357036956,1743606640236,-500.0,0.00018356,2]
[357036958,1743606640245,-1000.0,0.00018356,7]
[357036959,1743606640254,-716.3,0.00018356,2]
[357036961,1743606640264,-500.0,0.00018356,2]
[357036963,1743606640273,-589.3,0.00018356,2]
[357036964,1743606640283,-151.0,0.0001863,2]
[357036965,1743606640292,-500.0,0.0001863,2]
[357036966,1743606640301,-637.07,0.0001863,2]
[357036967,1743606640311,-500.0,0.0001863,2]
[357036968,1743606640320,-1000.0,0.0001863,7]
[357036969,1743606640330,-716.3,0.0001863,2]
[357036970,1743606640339,-500.0,0.0001863,2]
[357036971,1743606640349,-589.3,0.0001863,2]
[357036972,1743606640360,-2952.14532715,0.00018866,2]
[357036975,1743606640490,-836.00498798,0.00018904,7]
[357036976,1743606640501,-160.0,0.00018904,7]
[357036977,1743606640510,-500.0,0.00018904,2]
[357036978,1743606640520,-637.07,0.00018904,2]
[357036979,1743606640530,-500.0,0.00018904,2]
[357036980,1743606640543,-1000.0,0.00018904,7]
[357036981,1743606640553,-716.3,0.00018904,2]
[357036982,1743606640563,-411.78405384,0.00018904,2]
[357036983,1743606640573,-589.3,0.00018904,2]
[357036984,1743606640583,-160.0,0.00018979,2]
[357036985,1743606640592,-160.0,0.0001898,2]
[357036986,1743606640602,-836.00498798,0.0001898,2]
[357036988,1743606640615,-12458.93820146,0.0001898,2]
[357036989,1743606640625,-160.0,0.0001898,2]
[357036990,1743606640635,-419.02799708,0.0001898,2]
[357036991,1743606640644,-160.0,0.00018981,2]
[357036992,1743606640655,-1102.66931651,0.00019,2]
[357036993,1743606640665,-1040.15482715,0.0001901,2]
[357036994,1743606640675,-500.0,0.00019178,2]
[357036995,1743606640685,-637.07,0.00019178,2]
[357036996,1743606640695,-500.0,0.00019178,2]
[357036997,1743606640705,-1000.0,0.00019178,7]
[357036998,1743606640714,-716.3,0.00019178,2]
[357036999,1743606640726,-589.3,0.00019178,2]
[357037000,1743606640736,-151.0,0.00019178,2]
[357037001,1743606640746,-151.0,0.00019178,2]
[357037002,1743606640755,-424.34263663,0.00019178,7]
[357037003,1743606640765,-500.0,0.00019223,7]
[357037004,1743606640775,-500.0,0.00019223,7]
[357037005,1743606640785,-500.0,0.00019223,7]
[357037006,1743606640794,-500.0,0.00019223,7]
[357037007,1743606640804,-3503.0,0.00019223,7]
[357037008,1743606640813,-500.0,0.00019223,7]
[357037010,1743606640823,-572.75744,0.00019223,2]
[357037011,1743606640832,-572.75744,0.00019223,2]
[357037012,1743606640842,-151.0,0.00019329,2]
[357037013,1743606640851,-5352.59910242,0.00019329,2]
[357037014,1743606640862,-900.0,0.0001936,7]
[357037015,1743606640871,-150.35,0.0001936,7]
[357037016,1743606640881,-500.0,0.0001936,7]
[357037017,1743606640890,-500.02085512,0.0001936,7]
[357037018,1743606640900,-500.0,0.0001936,7]
[357037019,1743606640910,-191.10697181,0.0001936,7]
[357037020,1743606640919,-3503.0,0.0001936,7]
[357037021,1743606640928,-203.97600548,0.0001936,7]
[357037022,1743606640938,-501.44284346,0.0001936,7]
[357037023,1743606640947,-264.857,0.00019437,2]
[357037024,1743606640956,-556.208,0.00019437,2]
[357037025,1743606640968,-1643.0,0.00019437,2]
[357037026,1743606640977,-2268.0,0.00019437,2]
[357037027,1743606640988,-401.0,0.00019437,2]
[357037028,1743606640998,-500.0,0.00019452,2]
[357037029,1743606641007,-637.07,0.00019452,2]
[357037030,1743606641016,-644.56,0.00019452,2]
[357037031,1743606641026,-1000.0,0.00019452,7]
[357037032,1743606641035,-716.3,0.00019452,2]
[357037033,1743606641047,-589.3,0.00019452,2]
[357037034,1743606641057,-306.0,0.00019452,2]
[357037035,1743606641066,-200.18,0.00019497,7]
[357037036,1743606641076,-198.25784857,0.00019497,7]
[357037037,1743606641086,-150.41,0.00019497,7]
[357037038,1743606641096,-500.0,0.00019497,7]
[357037039,1743606641105,-500.0,0.00019497,7]
[357037040,1743606641117,-3503.0,0.00019497,7]
[357037041,1743606641127,-200.18,0.00019497,7]
[357037042,1743606641137,-2952.14532715,0.00019521,2]
[357037043,1743606641147,-991.05,0.00019634,7]
[357037044,1743606641157,-500.0,0.00019634,7]
[357037045,1743606641167,-150.19,0.00019634,7]
[357037046,1743606641177,-3503.0,0.00019634,7]
[357037047,1743606641186,-151.0,0.00019634,2]
[357037048,1743606641195,-151.0,0.00019634,2]
[357037049,1743606641206,-500.0,0.00019726,2]
[357037050,1743606641215,-572.75744,0.00019726,2]
[357037051,1743606641225,-572.75744,0.00019726,2]
[357037052,1743606641234,-462.53481237,0.00019726,2]
[357037075,1743606646075,-500.0,0.00016438,2]
[357037076,1743606646085,-500.0,0.00016438,2]
[357037078,1743606646094,-837.3,0.00018358,2]
[357037099,1743606646642,-400.0,0.00018358,2]
[357037100,1743606646655,-1486.21610749,0.00018358,2]
[357037101,1743606646664,-174.53518763,0.00019726,2]
[357037102,1743606646674,-1000.0,0.00019726,7]
[357037103,1743606646684,-716.3,0.00019726,2]
[357037104,1743606646693,-589.3,0.00019726,2]
[357037105,1743606646703,-199.70610174,0.00019771,7]
[357037106,1743606646713,-200.48073826,0.00019771,7]
[357037107,1743606646722,-150.53,0.00019771,7]
[357037108,1743606646732,-967.65490923,0.00019771,7]
[357037109,1743606646741,-416.77695566,0.00019771,7]
[357037113,1743606647144,-3086.22304434,0.00019771,7]
[357037114,1743606647154,-244.91206671,0.00019771,7]
[357037115,1743606647164,-177.54264445,0.00019771,7]
[357037116,1743606647174,-1040.15482715,0.000199,2]
[357037117,1743606647183,-209.807243,0.00019908,7]
[357037118,1743606647194,-3503.0,0.00019908,7]
[357037119,1743606647204,-247.42554965,0.00019908,7]
[357037120,1743606647214,-151.0,0.00019908,2]
[357037121,1743606647223,-23663.1127504,0.0002,2]
[357037122,1743606647235,-24436.11859979,0.0002,2]
[357037345,1743606675886,1308.102481,0.00025,30]
[357037346,1743606676197,1308.102481,0.00025,30]
[357037347,1743606676687,1308.102481,0.00025,30]
[357037348,1743606676819,1308.102481,0.00025,30]
[357037349,1743606677134,1308.102481,0.00025,30]
[357037351,1743606785468,171.945523,0.00013699,2]
[357037352,1743607158138,1317.38222,0.00025,30]
[357037353,1743607158455,1317.38222,0.00025,30]
[357037354,1743607158765,1317.38222,0.00025,30]
[357037355,1743607159088,1317.38222,0.00025,30]
[357037356,1743607159404,1317.38222,0.00025,30]
[357037370,1743607742821,-156.06129162,0.00015183,3]
[357037371,1743607742848,-300.0,0.00015335,2]
[357037372,1743607742881,-500.0,0.00015336,2]
[357037373,1743607742915,-500.0,0.00015336,2]
[357037374,1743607742949,-500.0,0.00015336,2]
[357037375,1743607742985,-500.0,0.00015336,2]
[357037376,1743607743016,-408.26749887,0.00015336,2]
[357037377,1743607743056,-500.0,0.00015336,2]
[357037378,1743607743088,-500.0,0.00015336,2]
[357037379,1743607743118,-500.0,0.00015336,2]
[357037380,1743607743153,-500.0,0.00015336,2]
[357037381,1743607743184,-235.76382958,0.00015336,2]
[357037382,1743607743218,-500.0,0.00015336,2]
[357037383,1743607743248,-500.0,0.00015336,2]
[357037384,1743607743284,-500.0,0.00015336,2]
[357037385,1743607743321,-500.0,0.00015336,2]
[357037386,1743607743355,-409.00801729,0.00015336,2]
[357037387,1743607743390,-395.89936264,0.00015336,2]
[357037403,1743607758892,988.036665,0.00025,30]
[357037404,1743607759200,988.036665,0.00025,30]
[357037405,1743607759516,988.036665,0.00025,30]
[357037406,1743607759832,988.036665,0.00025,30]
[357037407,1743607760313,988.036665,0.00025,30]
[357037470,1743607839047,-104.10063736,0.00015336,2]
[357037471,1743607839057,-500.0,0.00015336,2]
[357037472,1743607839066,-500.0,0.00015336,2]
[357037473,1743607839076,-500.0,0.00015336,2]
[357037474,1743607839085,-500.0,0.00015336,2]
[357037475,1743607839095,-2439.94272305,0.00015337,2]
[357037476,1743607839107,-3726.24,0.00015337,2]
[357037486,1743607841208,-9925.31723778,0.00015337,2]
[357037487,1743607841221,-5664.9,0.00015337,2]
[357037488,1743607841272,-1743.86955029,0.00015337,2]
[357037521,1743607845147,-1399.73048888,0.00015337,2]
[357037523,1743607845158,-157.97042154,0.00015337,2]
[357037543,1743607846926,-161.06798336,0.00015337,2]
[357037544,1743607846936,-234.8226608,0.00015481,2]
[357037545,1743607846945,-1594.10935584,0.00016237,2]
[357037546,1743607846958,-448.52772483,0.00016237,2]
[357037547,1743607846971,-500.0,0.00016336,2]
[357037548,1743607846980,-345.16096159,0.00016336,2]
[357037549,1743607846990,-42765.75841141,0.00016337,2]
[357037550,1743607847003,-323.85000013,0.00016337,2]
[357037585,1743608238955,169.808723,0.00013699,2]
[357037586,1743608327405,9109.43013128,0.000135,2]
[357037587,1743608357639,741.027499,0.00025,30]
[357037588,1743608357936,741.027499,0.00025,30]
[357037589,1743608358237,741.027499,0.00025,30]
[357037590,1743608358585,741.027499,0.00025,30]
[357037591,1743608359436,741.027499,0.00025,30]
[357037629,1743608958993,555.770624,0.00025,30]
[357037630,1743608959325,555.770624,0.00025,30]
[357037631,1743608959698,555.770624,0.00025,30]
[357037632,1743608960014,555.770624,0.00025,30]
[357037633,1743608960331,555.770624,0.00025,30]
[357037688,1743609032047,-1500.0,0.00015,2]
[357037690,1743609032057,-278.76902169,0.000161,2]
[357037693,1743609032067,-278.7690217,0.000161,2]
[357037694,1743609032076,-502.6242639,0.000162,2]
[357037697,1743609032086,-161.37650796,0.00016338,2]
[357037699,1743609032096,-300.0,0.00016429,2]
[357037700,1743609032105,-500.0,0.0001643,2]
[357037702,1743609032114,-500.0,0.0001643,2]
[357037704,1743609032124,-552.26226718,0.0001643,2]
[357037706,1743609032134,-500.0,0.0001643,2]
[357037709,1743609032143,-187.31179669,0.0001643,2]
[357037711,1743609032155,-312.68820331,0.0001643,2]
[357037713,1743609032165,-402.81039729,0.0001643,2]
[357037715,1743609032175,-500.0,0.0001643,2]
[357037717,1743609032184,-183.79932294,0.0001643,2]
[357037719,1743609032201,-2571.86120024,0.0001643,2]
[357037721,1743609032211,-23533.77457791,0.00016431,2]
[357037723,1743609032223,-1366.22542209,0.00016431,2]
[357037725,1743609032233,-500.0,0.00016438,2]
[357037728,1743609032243,-500.0,0.00016438,2]
[357037732,1743609032253,-500.0,0.00016438,2]
[357037736,1743609032263,-500.0,0.00016438,2]
[357037739,1743609032273,-500.0,0.00016438,2]
[357037742,1743609032282,-500.0,0.00016438,2]
[357037744,1743609032291,-339.25,0.00016438,2]
[357037746,1743609032302,-500.0,0.00016438,2]
[357037748,1743609032313,-175.0,0.00016438,2]
[357037750,1743609032323,-500.0,0.00016438,2]
[357037752,1743609032335,-500.0,0.00016438,2]
[357037754,1743609032345,-505.61748362,0.00016438,2]
[357037755,1743609032355,-624.66,0.00016438,2]
[357037758,1743609032364,-500.0,0.00016438,2]
[357037760,1743609032374,-500.0,0.00016438,2]
[357037761,1743609032384,-500.0,0.00016438,2]